fUST/lending_fUST_20260307
["ID","MTS","AMOUNT","RATE_DAILY","PERIOD"]
[407880996,1772879437985,-162.380719,2.507e-05,2]
[407880997,1772879437993,-250.0,2.507e-05,2]
[407880998,1772879438002,-250.0,2.507e-05,2]
[407880999,1772879438012,-250.0,2.507e-05,2]
[407881000,1772879438021,-250.0,2.507e-05,2]
[407881001,1772879438030,-155.54406138,2.507e-05,2]
[407881002,1772879438039,-162.380719,2.507e-05,2]
[407881003,1772879438048,-168.3888056,2.507e-05,2]
[407881004,1772879438057,-174.61919141,2.507e-05,2]
[407881005,1772879438066,-181.08010149,2.507e-05,2]
[407881006,1772879438075,-187.78006525,2.507e-05,2]
[407881007,1772879438084,-194.72792766,2.507e-05,2]
[407881008,1772879438093,-201.93286099,2.507e-05,2]
[407881009,1772879438103,-209.40437684,2.507e-05,2]
[407881010,1772879438111,-217.15233878,2.507e-05,2]
[407881011,1772879438120,-225.18697532,2.507e-05,2]
[407881012,1772879438130,-233.51889341,2.507e-05,2]
[407881013,1772879438139,-242.15909246,2.507e-05,2]
[407881014,1772879438148,-251.11897888,2.507e-05,2]
[407881015,1772879438157,-260.4103811,2.507e-05,2]
[407881016,1772879438166,-270.0455652,2.507e-05,2]
[407881017,1772879438175,-280.03725112,2.507e-05,2]
[407881018,1772879438184,-290.39862941,2.507e-05,2]
[407881019,1772879438194,-301.1433787,2.507e-05,2]
[407881020,1772879438203,-537.6845,2.507e-05,2]
[407881021,1772879438213,-2150.738,2.507e-05,2]
[407881022,1772879438222,-189351.68702013,2.509e-05,2]
[407881081,1772879442906,-1716.55560701,2.509e-05,2]
[407881082,1772879442917,-350.2063345,2.509e-05,2]
[407881099,1772879445697,-521.19102886,2.509e-05,2]
[407881124,1772879834475,603.6357312,1.506e-05,2]
[407881136,1772880631713,-450.25366693,2.181e-05,2]
[407881307,1772880637881,-4549.74633307,2.181e-05,2]
[407881309,1772880637891,-782.10722471,2.203e-05,2]
[407881311,1772880637900,-332.21185182,2.335e-05,2]
[407881313,1772880637908,-500.0,2.384e-05,2]
[407881315,1772880637917,-1200.0,2.482e-05,2]
[407881317,1772880637926,-500.0,2.483e-05,2]
[407881319,1772880637935,-500.0,2.483e-05,2]
[407881321,1772880637944,-500.0,2.483e-05,2]
[407881323,1772880637954,-500.0,2.483e-05,2]
[407881325,1772880637963,-500.0,2.483e-05,2]
[407881327,1772880637972,-1476.2347865,2.503e-05,2]
[407881329,1772880637985,-3049.6276665,2.503e-05,2]
[407881331,1772880637994,-215.44783098,2.507e-05,2]
[407881333,1772880638003,-162.380719,2.507e-05,2]
[407881335,1772880638012,-168.3888056,2.507e-05,2]
[407881337,1772880638023,-174.61919141,2.507e-05,2]
[407881339,1772880638033,-181.08010149,2.507e-05,2]
[407881341,1772880638042,-187.78006525,2.507e-05,2]
[407881343,1772880638052,-194.72792766,2.507e-05,2]
[407881345,1772880638062,-201.93286099,2.507e-05,2]
[407881347,1772880638071,-209.40437684,2.507e-05,2]
[407881349,1772880638080,-217.15233878,2.507e-05,2]
[407881351,1772880638089,-537.6845,2.507e-05,2]
[407881353,1772880638098,-34.88946494,2.507e-05,2]
[407881377,1772880642886,-190.29751038,2.507e-05,2]
[407881378,1772880642896,-233.51889341,2.507e-05,2]
[407881379,1772880642905,-242.15909246,2.507e-05,2]
[407881380,1772880642914,-251.11897888,2.507e-05,2]
[407881381,1772880642923,-260.4103811,2.507e-05,2]
[407881382,1772880642932,-270.0455652,2.507e-05,2]
[407881383,1772880642946,-280.03725112,2.507e-05,2]
[407881384,1772880642955,-290.39862941,2.507e-05,2]
[407881385,1772880642965,-301.1433787,2.507e-05,2]
[407881386,1772880642974,-380.87031929,2.507e-05,2]
[407881387,1772880642988,-1769.86768071,2.507e-05,2]
[407881388,1772880642997,-4529.20015097,2.509e-05,2]
[407881400,1772880645791,-8202.56492857,2.509e-05,2]
[407881403,1772881075717,206.037892,1.54e-05,2]
[407881404,1772881087259,-151.0,3.1e-05,30]
[407881429,1772881831834,-5000.0,2.338e-05,2]
[407881430,1772881831843,-329.11650003,2.392e-05,2]
[407881432,1772881831853,-300.0,2.433e-05,2]
[407881434,1772881831862,-482.0,2.433e-05,2]
[407881436,1772881831871,-500.0,2.434e-05,2]
[407881438,1772881831880,-500.0,2.434e-05,2]
[407881439,1772881831889,-500.0,2.434e-05,2]
[407881441,1772881831899,-500.0,2.434e-05,2]
[407881443,1772881831910,-500.0,2.434e-05,2]
[407881445,1772881831920,-500.0,2.434e-05,2]
[407881447,1772881831929,-500.0,2.434e-05,2]
[407881448,1772881831938,-500.0,2.434e-05,2]
[407881450,1772881831948,-500.0,2.434e-05,2]
[407881452,1772881831957,-345.52399751,2.434e-05,2]
[407881454,1772881831966,-500.0,2.435e-05,2]
[407881456,1772881831975,-889.05239901,2.459e-05,2]
[407881457,1772881831984,-500.0,2.483e-05,2]
[407881459,1772881831993,-500.0,2.483e-05,2]
[407881461,1772881832002,-500.0,2.483e-05,2]
[407881462,1772881832013,-500.0,2.483e-05,2]
[407881464,1772881832022,-162.380719,2.507e-05,2]
[407881466,1772881832031,-168.3888056,2.507e-05,2]
[407881467,1772881832040,-174.61919141,2.507e-05,2]
[407881469,1772881832049,-181.08010149,2.507e-05,2]
[407881471,1772881832058,-187.78006525,2.507e-05,2]
[407881472,1772881832068,-194.72792766,2.507e-05,2]
[407881476,1772881832405,-201.93286099,2.507e-05,2]
[407881477,1772881832415,-209.40437684,2.507e-05,2]
[407881478,1772881832425,-537.6845,2.507e-05,2]
[407881479,1772881832437,-217.15233878,2.507e-05,2]
[407881480,1772881832446,-225.18697532,2.507e-05,2]
[407881481,1772881832455,-233.51889341,2.507e-05,2]
[407881482,1772881832464,-242.15909246,2.507e-05,2]
[407881483,1772881832473,-251.11897888,2.507e-05,2]
[407881484,1772881832482,-260.4103811,2.507e-05,2]
[407881485,1772881832492,-270.0455652,2.507e-05,2]
[407881486,1772881832501,-280.03725112,2.507e-05,2]
[407881487,1772881832510,-290.39862941,2.507e-05,2]
[407881488,1772881832519,-301.1433787,2.507e-05,2]
[407881489,1772881832528,-2150.738,2.507e-05,2]
[407881490,1772881832537,-869.33887034,2.509e-05,2]
[407881491,1772881832557,-1002.36705731,2.509e-05,2]
[407881492,1772881832568,-6788.95055893,2.509e-05,2]
[407881499,1772881838040,-55575.27614112,2.509e-05,2]
[407881500,1772881838051,-988.23170697,2.509e-05,2]
[407881501,1772881838063,-36790.64988736,2.509e-05,2]
[407881504,1772881840510,-4631.09590182,2.509e-05,2]
[407881519,1772881846079,-482.64,2.509e-05,2]
[407881520,1772881846190,-1047.76194729,2.509e-05,2]
[407881580,1772882372236,298.8953384,1.511e-05,2]
[407881581,1772882391227,7869.6263778,1.493e-05,2]
[407881591,1772883024563,-754.48428295,2.313e-05,2]
[407881634,1772883038131,-4245.51571705,2.313e-05,2]
[407881635,1772883038145,-325.53417003,2.354e-05,2]
[407881636,1772883038158,-150.0,2.384e-05,2]
[407881637,1772883038171,-592.70159934,2.459e-05,2]
[407881638,1772883038185,-500.0,2.468e-05,2]
[407881639,1772883038198,-500.0,2.483e-05,2]
[407881640,1772883038211,-5650.7100525,2.498e-05,2]
[407881641,1772883038224,-30163.6106577,2.5e-05,2]
[407881643,1772883038237,-162.380719,2.507e-05,2]
[407881645,1772883038249,-168.3888056,2.507e-05,2]
[407881647,1772883038262,-174.61919141,2.507e-05,2]
[407881649,1772883038275,-181.08010149,2.507e-05,2]
[407881652,1772883038287,-187.78006525,2.507e-05,2]
[407881654,1772883038300,-194.72792766,2.507e-05,2]
[407881657,1772883038313,-537.6845,2.507e-05,2]
[407881659,1772883038326,-201.93286099,2.507e-05,2]
[407881660,1772883038339,-209.40437684,2.507e-05,2]
[407881661,1772883038352,-217.15233878,2.507e-05,2]
[407881662,1772883038365,-225.18697532,2.507e-05,2]
[407881663,1772883038377,-233.51889341,2.507e-05,2]
[407881664,1772883038390,-2150.738,2.507e-05,2]
[407881665,1772883038403,-242.15909246,2.507e-05,2]
[407881666,1772883038415,-251.11897888,2.507e-05,2]
[407881667,1772883038428,-260.4103811,2.507e-05,2]
[407881668,1772883038440,-270.0455652,2.507e-05,2]
[407881669,1772883038452,-280.03725112,2.507e-05,2]
[407881670,1772883038464,-290.39862941,2.507e-05,2]
[407881671,1772883038477,-301.1433787,2.507e-05,2]
[407881672,1772883038490,-205833.81854229,2.509e-05,2]
[407881673,1772883038502,-23508.24,2.509e-05,2]
[407881674,1772883038515,-500.0,2.51e-05,2]
[407881675,1772883038528,-500.0,2.51e-05,2]
[407881676,1772883038541,-500.0,2.51e-05,2]
[407881677,1772883038553,-500.0,2.51e-05,2]
[407881678,1772883038565,-300.0,2.558e-05,2]
[407881679,1772883038579,-300.0,2.558e-05,2]
[407881680,1772883038591,-300.0,2.558e-05,2]
[407881681,1772883038604,-300.0,2.558e-05,2]
[407881682,1772883038616,-300.0,2.558e-05,2]
[407881683,1772883038629,-300.0,2.558e-05,2]
[407881684,1772883038642,-300.0,2.558e-05,2]
[407881685,1772883038655,-300.0,2.558e-05,2]
[407881686,1772883038667,-300.0,2.558e-05,2]
[407881687,1772883038680,-300.0,2.558e-05,2]
[407881688,1772883038693,-300.0,2.558e-05,2]
[407881689,1772883038706,-300.0,2.558e-05,2]
[407881690,1772883038718,-300.0,2.558e-05,2]
[407881691,1772883038731,-300.0,2.558e-05,2]
[407881692,1772883038749,-300.0,2.558e-05,2]
[407881693,1772883038762,-600.0,2.558e-05,2]
[407881694,1772883038775,-352.176,2.73e-05,2]
[407881696,1772883038789,-2188.0,2.73e-05,2]
[407881698,1772883038802,-1391.0,2.73e-05,2]
[407881699,1772883038816,-434.0,2.73e-05,2]
[407881700,1772883038828,-753.0,2.73e-05,2]
[407881702,1772883038840,-10000.0,2.74e-05,2]
[407881704,1772883038854,-720.0,2.814e-05,2]
[407881706,1772883038866,-1260.8438389,2.814e-05,2]
[407881707,1772883038879,-281.3322877,2.885e-05,2]
[407881708,1772883038892,-1000.0,3.031e-05,2]
[407881709,1772883038905,-557.5788265,3.055e-05,2]
[407881710,1772883038917,-2230.315306,3.055e-05,2]
[407881711,1772883038930,-1000.0,3.058e-05,2]
[407881712,1772883038943,-1000.0,3.058e-05,2]
[407881713,1772883038955,-1000.0,3.058e-05,2]
[407881714,1772883038967,-1000.0,3.058e-05,2]
[407881715,1772883038980,-864.0,3.095e-05,2]
[407881716,1772883038993,-1590.960268,3.1e-05,30]
[407881717,1772883039006,-360.38,3.4e-05,2]
[407881718,1772883039019,-1000.0,3.405e-05,2]
[407881719,1772883039031,-1500.0,3.578e-05,2]
[407881720,1772883039043,-578.20924308,3.603e-05,2]
[407881721,1772883039055,-2312.83697232,3.603e-05,2]
[407881722,1772883039068,-1474.95050482,3.606e-05,2]
[407881723,1772883039080,-1500.0,3.606e-05,2]
[407881724,1772883039093,-1500.0,3.606e-05,2]
[407881725,1772883039105,-1500.0,3.606e-05,2]
[407881726,1772883039118,-1000.0,3.745e-05,2]
[407881727,1772883039131,-244.0,3.745e-05,2]
[407881728,1772883039143,-800.0,3.936e-05,2]
[407881729,1772883039155,-5000.0,4e-05,2]
[407881730,1772883039169,-429.74,4.026e-05,2]
[407881731,1772883039182,-1000.0,4.12e-05,2]
[407881732,1772883039195,-492.0,4.12e-05,2]
[407881733,1772883039209,-2000.0,4.126e-05,2]
[407881734,1772883039222,-599.60298507,4.151e-05,2]
[407881735,1772883039235,-2398.4119403,4.151e-05,2]
[407881736,1772883039247,-2000.0,4.154e-05,2]
[407881737,1772883039260,-2000.0,4.154e-05,2]
[407881738,1772883039273,-2000.0,4.154e-05,2]
[407881739,1772883039285,-384.13032063,4.354e-05,2]
[407881740,1772883039298,-1000.0,4.532e-05,2]
[407881741,1772883039311,-791.0,4.532e-05,2]
[407881742,1772883039325,-16852.30744679,4.585e-05,2]
[407881743,1772883039337,-38000.0,4.619e-05,2]
[407881744,1772883039350,-38000.0,4.628e-05,2]
[407881745,1772883039362,-38000.0,4.628e-05,2]
[407881746,1772883039375,-380767.46431419,4.631e-05,2]
[407881747,1772883039389,-38000.0,4.636e-05,2]
[407881748,1772883039406,-38000.0,4.636e-05,2]
[407881749,1772883039419,-38000.0,4.645e-05,2]
[407881750,1772883039432,-38000.0,4.645e-05,2]
[407881751,1772883039444,-38000.0,4.654e-05,2]
[407881752,1772883039457,-38000.0,4.654e-05,2]
[407881753,1772883039470,-33915.56446678,4.654e-05,2]
[407881754,1772883039489,-4084.43553322,4.654e-05,2]
[407881755,1772883039501,-15966.52157988,4.654e-05,2]
[407881772,1772883041919,-22033.47842012,4.654e-05,2]
[407881773,1772883041930,-38000.0,4.654e-05,2]
[407881774,1772883041940,-2500.0,4.674e-05,2]
[407881775,1772883041949,-621.78829552,4.699e-05,2]
[407881776,1772883041959,-2487.15318209,4.699e-05,2]
[407881777,1772883041970,-160.0,4.7e-05,2]
[407881778,1772883041979,-160.0,4.7e-05,2]
[407881779,1772883041988,-160.0,4.7e-05,2]
[407881780,1772883041999,-131576.38010228,4.7e-05,2]
[407881781,1772883042012,-647.17324618,4.7e-05,2]
[407881782,1772883042025,-3292.31918427,4.7e-05,2]
[407881784,1772883043230,-351.96289802,4.7e-05,2]
[407881785,1772883043242,-1021.47584788,4.7e-05,2]
[407881800,1772883046090,-6814.04640981,4.7e-05,2]
[407881801,1772883046145,-274.17,4.7e-05,2]
[407881804,1772883702139,216.7907747,1.242e-05,2]
[407881890,1772884244020,-1200.0,2.738e-05,2]
[407881891,1772884244031,-300.0,2.739e-05,2]
[407881892,1772884244041,-300.0,2.739e-05,2]
[407881893,1772884244051,-265.0,2.739e-05,2]
[407881894,1772884244062,-248.0,2.739e-05,2]
[407881895,1772884244072,-10000.0,2.74e-05,2]
[407881896,1772884244084,-314.34088022,2.78e-05,2]
[407881897,1772884244095,-300.0,2.835e-05,2]
[407881898,1772884244108,-300.0,2.835e-05,2]
[407881899,1772884244119,-300.0,2.835e-05,2]
[407881900,1772884244130,-300.0,2.835e-05,2]
[407881901,1772884244140,-300.0,2.835e-05,2]
[407881902,1772884244151,-300.0,2.835e-05,2]
[407881903,1772884244162,-300.0,2.835e-05,2]
[407881904,1772884244175,-300.0,2.835e-05,2]
[407881905,1772884244185,-300.0,2.835e-05,2]
[407881906,1772884244194,-300.0,2.835e-05,2]
[407881907,1772884244203,-300.0,2.835e-05,2]
[407881908,1772884244213,-300.0,2.835e-05,2]
[407881909,1772884244223,-300.0,2.835e-05,2]
[407881910,1772884244232,-300.0,2.835e-05,2]
[407881911,1772884244241,-300.0,2.835e-05,2]
[407881912,1772884244251,-600.0,2.891e-05,2]
[407881913,1772884244260,-208.517,2.936e-05,2]
[407881914,1772884244269,-150.0,2.936e-05,2]
[407881915,1772884244278,-150.0,2.936e-05,2]
[407881916,1772884244288,-150.0,2.936e-05,2]
[407881917,1772884244297,-720.0,3.18e-05,2]
[407881918,1772884244306,-500.0,3.307e-05,2]
[407881919,1772884244316,-378.24,3.4e-05,2]
[407881920,1772884244325,-864.0,3.498e-05,2]
[407881921,1772884244334,-1000.0,3.847e-05,2]
[407881922,1772884244343,-1000.0,4.232e-05,2]
[407881923,1772884244353,-244.0,4.232e-05,2]
[407881924,1772884244363,-500.0,4.473e-05,2]
[407881925,1772884244372,-500.0,4.473e-05,2]
[407881926,1772884244381,-500.0,4.473e-05,2]
[407881927,1772884244390,-399.36497535,4.5e-05,2]
[407882119,1772885438470,-5000.0,2.527e-05,2]
[407882121,1772885438480,-308.05406261,2.627e-05,2]
[407882123,1772885438490,-150.0,2.936e-05,2]
[407882125,1772885438499,-344.895,2.936e-05,2]
[407882127,1772885438508,-732.0,2.936e-05,2]
[407882129,1772885438518,-300.0,3.053e-05,2]
[407882131,1772885438528,-300.0,3.053e-05,2]
[407882133,1772885438536,-300.0,3.053e-05,2]
[407882135,1772885438546,-300.0,3.053e-05,2]
[407882137,1772885438555,-300.0,3.053e-05,2]
[407882139,1772885438564,-300.0,3.053e-05,2]
[407882141,1772885438573,-300.0,3.053e-05,2]
[407882142,1772885438582,-300.0,3.053e-05,2]
[407882144,1772885438593,-300.0,3.053e-05,2]
[407882146,1772885438605,-300.0,3.053e-05,2]
[407882148,1772885438614,-300.0,3.053e-05,2]
[407882150,1772885438624,-300.0,3.053e-05,2]
[407882152,1772885438634,-300.0,3.053e-05,2]
[407882154,1772885438643,-300.0,3.053e-05,2]
[407882156,1772885438652,-300.0,3.053e-05,2]
[407882158,1772885438661,-500.0,3.315e-05,2]
[407882160,1772885438673,-370.68,3.4e-05,2]
[407882162,1772885438683,-500.0,4.173e-05,2]
[407882164,1772885438692,-500.0,4.173e-05,2]
[407882166,1772885438701,-500.0,4.173e-05,2]
[407882168,1772885438710,-21554.02426159,4.2e-05,2]
[407882170,1772885438721,-2000.38884425,4.2e-05,2]
[407882173,1772885438740,-60727.87686377,4.2e-05,2]
[407882376,1772885441230,-1177.93474205,4.2e-05,2]
[407882378,1772885441241,-808.4544273,4.2e-05,2]
[407882384,1772885441285,-21323.05065958,4.2e-05,2]
[407882501,1772885443559,-6219.39969171,4.2e-05,2]
[407882502,1772885443614,-1357.39668019,4.2e-05,2]
[407882503,1772885443626,-8008.41106366,4.2e-05,2]
[407882517,1772885446477,-28024.64066622,4.2e-05,2]
[407882518,1772885446535,-5000.0,4.158e-05,2]
[407882519,1772885446544,-2707.84737577,4.2e-05,2]
[407882523,1772886624840,-1192.33091763,2.954e-05,2]
[407882586,1772886646400,-3461.90317999,2.954e-05,2]
[407882587,1772886646412,-345.76590238,2.954e-05,2]
[407882588,1772886646421,-301.89298136,3.01e-05,2]
[407882589,1772886646431,-580.0,3.036e-05,2]
[407882590,1772886646440,-7136.39922681,3.037e-05,2]
[407882617,1772887831667,-867.0591313,2.701e-05,2]
[407882619,1772887831679,-1739.40169635,2.701e-05,2]
[407882890,1772887837787,-2393.53917235,2.701e-05,2]
[407882892,1772887837797,-458.49435571,2.728e-05,2]
[407882894,1772887837807,-892.331,2.947e-05,2]
[407882896,1772887837816,-441.23276299,2.947e-05,2]
[407882899,1772887837827,-290.76723701,2.947e-05,2]
[407882901,1772887837836,-300.0,3.036e-05,2]
[407882903,1772887837846,-2863.60077319,3.037e-05,2]
[407882905,1772887837855,-300.0,3.096e-05,2]
[407882907,1772887837865,-300.0,3.096e-05,2]
[407882909,1772887837875,-300.0,3.096e-05,2]
[407882911,1772887837885,-300.0,3.096e-05,2]
[407882913,1772887837894,-300.0,3.096e-05,2]
[407882915,1772887837903,-300.0,3.096e-05,2]
[407882917,1772887837912,-300.0,3.096e-05,2]
[407882919,1772887837921,-300.0,3.096e-05,2]
[407882921,1772887837931,-300.0,3.096e-05,2]
[407882923,1772887837940,-300.0,3.096e-05,2]
[407882925,1772887837949,-300.0,3.096e-05,2]
[407882927,1772887837958,-300.0,3.096e-05,2]
[407882929,1772887837967,-300.0,3.096e-05,2]
[407882931,1772887837976,-300.0,3.096e-05,2]
[407882933,1772887837985,-300.0,3.096e-05,2]
[407882935,1772887837994,-600.0,3.157e-05,2]
[407882936,1772887838003,-363.26,3.4e-05,2]
[407882938,1772887838014,-720.0,3.473e-05,2]
[407882940,1772887838023,-10808.92834523,3.7e-05,2]
[407882942,1772887838033,-25513.58226119,3.7e-05,2]
[407882943,1772887838042,-2464.61443469,3.7e-05,2]
[407883051,1772887842996,-5000.0,3.7e-05,2]
[407883070,1772887845736,-5000.0,3.663e-05,2]
[407883072,1772887845746,-7624.34608216,3.7e-05,2]
[407883074,1772888424708,-758.7682229,2.865e-05,2]
[407883082,1772889031834,-719.59417461,2.67e-05,2]
[407883214,1772889037949,-4280.40582539,2.67e-05,2]
[407883215,1772889037960,-413.18777531,2.697e-05,2]
[407883216,1772889037970,-299.39120396,2.766e-05,2]
[407883217,1772889037980,-356.0,3.4e-05,2]
[407883218,1772889037990,-500.0,3.473e-05,2]
[407883219,1772889037999,-500.0,3.473e-05,2]
[407883220,1772889038008,-500.0,3.473e-05,2]
[407883221,1772889038020,-500.0,3.473e-05,2]
[407883222,1772889038031,-300.0,3.498e-05,2]
[407883223,1772889038043,-1200.0,3.498e-05,2]
[407883224,1772889038055,-10212.92882244,3.5e-05,2]
[407883225,1772889038069,-10608.01448721,3.5e-05,2]
[407883226,1772889038080,-11587.02874312,3.5e-05,2]
[407883244,1772889043175,-3333.0,3.5e-05,2]
[407883253,1772889045899,-12002.40754167,3.5e-05,2]
[407883258,1772889046008,-24030.53449191,3.5e-05,2]
[407883261,1772889658173,-379.38411145,2.699e-05,2]
[407883262,1772889658195,-293.40337988,2.726e-05,2]
[407883263,1772889658220,-1327.21250867,2.74e-05,2]
[407883264,1772889660186,-952.14461093,2.74e-05,2]
[407883265,1772889660207,-1047.85538907,3.194e-05,2]
[407883266,1772889661160,-241.75917193,3.194e-05,2]
[407883267,1772889661183,-1289.614561,3.328e-05,2]
[407883268,1772889661203,-352.93,3.4e-05,2]
[407883269,1772889661232,-115.69626707,3.463e-05,2]
[407883270,1772889661596,-1173.91829393,3.463e-05,2]
[407883271,1772889661617,-289.2533763,3.485e-05,2]
[407883272,1772889661641,-536.82832977,3.485e-05,2]
[407883273,1772889662033,-2000.0,3.485e-05,2]
[407883274,1772889662517,-1588.25619583,3.485e-05,2]
[407883275,1772889662538,-411.74380417,3.597e-05,2]
[407883276,1772889663182,-877.87075683,3.597e-05,2]
[407883277,1772889663204,-300.0,3.699e-05,2]
[407883278,1772889663230,-822.12924317,3.7e-05,2]
[407883279,1772889663542,-2000.0,3.7e-05,2]
[407883280,1772889664051,-1916.46871524,3.7e-05,2]
[407883281,1772889664076,-83.53128476,3.7e-05,2]
[407883282,1772889666428,-76.46871524,3.7e-05,2]
[407883283,1772889666455,-160.0,3.7e-05,2]
[407883284,1772889666481,-1289.614561,3.732e-05,2]
[407883285,1772889666508,-473.91672376,3.866e-05,2]
[407883286,1772889666570,-815.69783724,3.866e-05,2]
[407883287,1772889666599,-600.0,3.875e-05,2]
[407883288,1772889666626,-584.30216276,3.93e-05,2]
[407883289,1772889666726,-2000.0,3.93e-05,2]
[407883290,1772889666830,-1540.78236284,3.93e-05,2]
[407883291,1772889666855,-289.2533763,4.034e-05,2]
[407883292,1772889666881,-169.96426086,4.069e-05,2]
[407883293,1772889669343,-237.03573914,4.069e-05,2]
[407883294,1772889669367,-160.0,4.2e-05,2]
[407883295,1772889669391,-160.0,4.2e-05,2]
[407883296,1772889669422,-720.0,4.262e-05,2]
[407883297,1772889669447,-500.0,4.343e-05,2]
[407883298,1772889669477,-222.96426086,4.343e-05,2]
[407883299,1772889671653,-732.0,3.132e-05,2]
[407883300,1772889671674,-277.03573914,4.343e-05,2]
[407883301,1772889671695,-500.0,4.348e-05,2]
[407883302,1772889671718,-490.96426086,4.364e-05,2]
[407883303,1772889954400,153.0,3.1e-07,2]
[407883304,1772889955434,153.0,3.1e-07,2]
[407883305,1772889956457,153.0,3.1e-07,2]
[407883306,1772889957486,153.0,3.1e-07,2]
[407883307,1772889958510,153.0,3.1e-07,2]
[407883308,1772889959564,153.0,3.1e-07,2]
[407883310,1772890148818,-1769.32432165,3.103e-05,2]
[407883311,1772890148840,-1230.67567835,3.134e-05,2]
[407883312,1772890151446,-250.8541673,3.134e-05,2]
[407883313,1772890151470,-1769.32432165,3.166e-05,2]
[407883314,1772890151491,-732.0,3.198e-05,2]
[407883315,1772890151513,-247.82151105,3.653e-05,2]
[407883316,1772890152835,-62.20538404,3.653e-05,2]
[407883317,1772890152856,-500.0,4.243e-05,2]
[407883318,1772890152877,-500.0,4.243e-05,2]
[407883319,1772890152898,-300.0,4.263e-05,2]
[407883320,1772890152922,-1637.79461596,4.264e-05,2]
[407883321,1772890154029,-3000.0,4.264e-05,2]
[407883322,1772890155018,-3000.0,4.264e-05,2]
[407883323,1772890155981,-3000.0,4.264e-05,2]
[407883324,1772890156945,-3000.0,4.264e-05,2]
[407883325,1772890157923,-3000.0,4.264e-05,2]
[407883326,1772890158970,-3000.0,4.264e-05,2]
[407883327,1772890159903,-3000.0,4.264e-05,2]
[407883328,1772890161339,-3000.0,4.264e-05,2]
[407883329,1772890224491,-345.87,3.4e-05,2]
[407883352,1772890232015,-3234.72293574,4.179e-05,2]
[407883543,1772890241238,-766.79663394,4.179e-05,2]
[407883878,1772890246105,-998.48043032,4.179e-05,2]
[407883879,1772890246115,-5000.0,4.221e-05,2]
[407883880,1772890246124,-500.0,4.243e-05,2]
[407883881,1772890246133,-500.0,4.243e-05,2]
[407883882,1772890246142,-500.0,4.243e-05,2]
[407883883,1772890246151,-500.0,4.243e-05,2]
[407883884,1772890246160,-300.0,4.263e-05,2]
[407883885,1772890246170,-125.79701622,4.264e-05,2]
[407883886,1772890320041,-2000.0,4.221e-05,2]
[407883887,1772890321190,-2000.0,4.221e-05,2]
[407883888,1772890322083,-1000.0,4.221e-05,2]
[407883889,1772890322104,-1000.0,4.264e-05,2]
[407883890,1772890323395,-2000.0,4.264e-05,2]
[407883891,1772890324751,-2000.0,4.264e-05,2]
[407883892,1772890328959,-200.0,4.264e-05,2]
[407883894,1772890500631,166.86234,1.644e-05,2]
[407883895,1772890500841,166.86234,1.918e-05,2]
[407883896,1772890679410,196.03,3.8e-06,2]
[407883897,1772890853003,221.65,2e-05,2]
[407883900,1772891305564,5000.0,2e-05,2]
[407883901,1772891327352,5000.0,2e-05,2]
[407883902,1772891335608,4821.26390372,2e-05,2]
[407883903,1772891351036,2697.92702565,2e-05,2]
[407883907,1772891432146,-328.02526807,2.033e-05,2]
[407883908,1772891432159,-166.86234,2.192e-05,2]
[407883909,1772891432171,-166.86234,2.466e-05,2]
[407883910,1772891432185,-400.97868007,2.673e-05,2]
[407883911,1772891432197,-166.86234,2.74e-05,2]
[407883912,1772891432210,-166.86234,3.014e-05,2]
[407883913,1772891432222,-166.86234,3.288e-05,2]
[407883914,1772891432234,-345.87,3.4e-05,2]
[407883915,1772891432247,-500.0,3.973e-05,2]
[407883916,1772891432260,-423.20716353,3.973e-05,2]
[407883946,1772891440944,-16.01626974,3.973e-05,2]
[407884015,1772892024853,-742.99010693,3.072e-05,2]
[407884016,1772892084141,10000.0,2e-05,2]
[407884017,1772892093961,10000.0,2e-05,2]
[407884018,1772892103644,10000.0,2e-05,2]
[407884019,1772892110938,10000.0,2e-05,2]
[407884020,1772892128504,9876.62,2e-05,2]
[407884021,1772892165709,13931.61653105,2.3e-05,120]
[407884022,1772892165730,7161.83483616,2.3e-05,120]
[407884045,1772892632307,-742.99010693,3.011e-05,2]
[407884047,1772892632318,-321.46476271,3.034e-05,2]
[407884049,1772892632328,-1180.24250547,3.072e-05,2]
[407884052,1772892632337,-22.50181333,3.4e-05,2]
[407884054,1772892632349,-316.45818667,3.4e-05,2]
[407884056,1772892632358,-500.0,3.773e-05,2]
[407884058,1772892632367,-500.0,3.773e-05,2]
[407884060,1772892632376,-184.39828053,3.773e-05,2]
[407884062,1772892632391,-315.60171947,3.773e-05,2]
[407884064,1772892632401,-3.26445753,3.8e-05,2]